[Event "Titled Tuesday Blitz July 25 Late 2023"]
[White "Terletsky, Oleg"]
[Black "Bjelobrk, Igor"]
[WhiteFideId "14116774"]
[BlackFideId "4300726"]
[WhiteElo "2518"]
[BlackElo "2660"]
[Result "1/2-1/2"]
[Round "10"]
[TimeControl "180+2"]
[Date "2023.07.25"]
[WhiteClock "0:00:08"]
[BlackClock "0:00:17"]
[Board "46"]

1. e4 {[%clk 0:03:00]}  e6 {[%clk 0:02:59]} 2. d4 {[%clk 0:03:00]}  d5 {[%clk 0:02:59]} 3. Nd2 {[%clk 0:03:00]}  c5 {[%clk 0:02:58]} 4. Ngf3 {[%clk 0:03:00]}  Nc6 {[%clk 0:02:58]} 5. exd5 {[%clk 0:03:00]}  exd5 {[%clk 0:02:58]} 6. Bb5 {[%clk 0:03:00]}  cxd4 {[%clk 0:02:57]} 7. O-O {[%clk 0:03:00]}  Bd6 {[%clk 0:02:57]} 8. Nb3 {[%clk 0:02:53]}  Ne7 {[%clk 0:02:56]} 9. Nbxd4 {[%clk 0:02:52]}  O-O {[%clk 0:02:52]} 10. Bd3 {[%clk 0:02:47]}  Ng6 {[%clk 0:02:25]} 11. h3 {[%clk 0:02:26]}  Nxd4 {[%clk 0:02:08]} 12. Nxd4 {[%clk 0:02:25]}  Qf6 {[%clk 0:02:02]} 13. c3 {[%clk 0:02:23]}  Nf4 {[%clk 0:01:59]} 14. Bxf4 {[%clk 0:02:08]}  Qxf4 {[%clk 0:01:59]} 15. g3 {[%clk 0:02:05]}  Qf6 {[%clk 0:01:54]} 16. Qh5 {[%clk 0:01:46]}  g6 {[%clk 0:01:51]} 17. Qxd5 {[%clk 0:01:35]}  Bxh3 {[%clk 0:01:50]} 18. Rfe1 {[%clk 0:01:34]}  Rad8 {[%clk 0:01:44]} 19. Qe4 {[%clk 0:01:17]}  Bc5 {[%clk 0:01:38]} 20. Rad1 {[%clk 0:00:38]}  Bxd4 {[%clk 0:01:36]} 21. cxd4 {[%clk 0:00:38]}  Rxd4 {[%clk 0:01:36]} 22. Qxb7 {[%clk 0:00:34]}  Rfd8 {[%clk 0:01:12]} 23. Be2 {[%clk 0:00:32]}  R8d7 {[%clk 0:01:10]} 24. Qf3 {[%clk 0:00:24]}  Rxd1 {[%clk 0:00:41]} 25. Rxd1 {[%clk 0:00:18]}  Rxd1+ {[%clk 0:00:41]} 26. Bxd1 {[%clk 0:00:18]}  Qxf3 {[%clk 0:00:26]} 27. Bxf3 {[%clk 0:00:18]}  Be6 {[%clk 0:00:26]} 28. a3 {[%clk 0:00:18]}  f5 {[%clk 0:00:26]} 29. Be2 {[%clk 0:00:17]}  Kf7 {[%clk 0:00:26]} 30. f4 {[%clk 0:00:17]}  h6 {[%clk 0:00:25]} 31. Kf2 {[%clk 0:00:17]}  g5 {[%clk 0:00:25]} 32. Ke3 {[%clk 0:00:16]}  Ke7 {[%clk 0:00:25]} 33. fxg5 {[%clk 0:00:15]}  hxg5 {[%clk 0:00:25]} 34. Kd4 {[%clk 0:00:16]}  Kd6 {[%clk 0:00:25]} 35. b4 {[%clk 0:00:16]}  Bd7 {[%clk 0:00:22]} 36. Bf3 {[%clk 0:00:14]}  Be6 {[%clk 0:00:20]} 37. a4 {[%clk 0:00:14]}  Bd7 {[%clk 0:00:20]} 38. b5 {[%clk 0:00:13]}  Be8 {[%clk 0:00:20]} 39. Be2 {[%clk 0:00:12]}  Bd7 {[%clk 0:00:20]} 40. a5 {[%clk 0:00:12]}  Be8 {[%clk 0:00:18]} 41. Bd3 {[%clk 0:00:12]}  Bd7 {[%clk 0:00:18]} 42. b6 {[%clk 0:00:11]}  axb6 {[%clk 0:00:18]} 43. axb6 {[%clk 0:00:11]}  Bc8 {[%clk 0:00:18]} 44. Ke3 {[%clk 0:00:09]}  Ke5 {[%clk 0:00:17]} 45. Be2 {[%clk 0:00:08]}  Bb7 {[%clk 0:00:17]} 46. Bf3 {[%clk 0:00:08]}  f4+ {[%clk 0:00:16]} 47. gxf4+ {[%clk 0:00:08]}  gxf4+ {[%clk 0:00:17]} 48. Kf2 {[%clk 0:00:09]}  Ba6 {[%clk 0:00:17]} 49. Be2 {[%clk 0:00:08]}  Bb7 {[%clk 0:00:17]} 50. Bf3 {[%clk 0:00:08]}  Ba6 {[%clk 0:00:17]} 51. Be2 {[%clk 0:00:08]}  Bb7 {[%clk 0:00:17]} 52. Bf3 {[%clk 0:00:08]} 1/2-1/2


[Site "https://www.chess.com"]

[Event "Titled Tuesday Blitz July 25 Late 2023"]
[White "slidingknight2775"]
[Black "Ponizil, Cyril"]
[BlackFideId "322202"]
[WhiteElo "2484"]
[BlackElo "2623"]
[Result "0-1"]
[Round "10"]
[TimeControl "180+2"]
[Date "2023.07.25"]
[WhiteClock "0:00:05"]
[BlackClock "0:01:30"]
[Board "49"]

1. Nf3 {[%clk 0:03:00]}  Nf6 {[%clk 0:02:59]} 2. g3 {[%clk 0:03:00]}  d5 {[%clk 0:02:57]} 3. Bg2 {[%clk 0:03:01]}  Bg4 {[%clk 0:02:57]} 4. c4 {[%clk 0:02:50]}  dxc4 {[%clk 0:02:53]} 5. Ne5 {[%clk 0:02:42]}  c6 {[%clk 0:02:53]} 6. Nxg4 {[%clk 0:02:32]}  Nxg4 {[%clk 0:02:53]} 7. Na3 {[%clk 0:02:30]}  e6 {[%clk 0:02:49]} 8. Nxc4 {[%clk 0:02:18]}  Qd4 {[%clk 0:02:49]} 9. Ne3 {[%clk 0:02:16]}  Nxe3 {[%clk 0:02:48]} 10. fxe3 {[%clk 0:02:17]}  Qf6 {[%clk 0:02:47]} 11. Bf3 {[%clk 0:02:13]}  h5 {[%clk 0:02:46]} 12. O-O {[%clk 0:02:12]}  Qg5 {[%clk 0:02:42]} 13. Qb3 {[%clk 0:02:03]}  b6 {[%clk 0:02:41]} 14. d4 {[%clk 0:01:47]}  Bd6 {[%clk 0:02:38]} 15. e4 {[%clk 0:01:45]}  Qd8 {[%clk 0:02:38]} 16. e5 {[%clk 0:01:27]}  Be7 {[%clk 0:02:38]} 17. Be3 {[%clk 0:01:27]}  h4 {[%clk 0:02:36]} 18. Rac1 {[%clk 0:01:23]}  O-O {[%clk 0:02:32]} 19. Bxc6 {[%clk 0:01:13]}  Nxc6 {[%clk 0:02:31]} 20. Rxc6 {[%clk 0:01:14]}  hxg3 {[%clk 0:02:29]} 21. hxg3 {[%clk 0:01:14]}  Qd7 {[%clk 0:02:23]} 22. Rfc1 {[%clk 0:01:10]}  Bc5 {[%clk 0:02:18]} 23. dxc5 {[%clk 0:00:33]}  Qxc6 {[%clk 0:02:18]} 24. cxb6 {[%clk 0:00:34]}  Qe4 {[%clk 0:02:18]} 25. bxa7 {[%clk 0:00:32]}  Qxe5 {[%clk 0:02:18]} 26. Bf2 {[%clk 0:00:29]}  Qxe2 {[%clk 0:02:13]} 27. Qc2 {[%clk 0:00:24]}  Qe5 {[%clk 0:02:10]} 28. Qc3 {[%clk 0:00:22]}  Qd5 {[%clk 0:01:58]} 29. Qc4 {[%clk 0:00:21]}  Qb7 {[%clk 0:01:51]} 30. Qc3 {[%clk 0:00:06]}  Rfc8 {[%clk 0:01:38]} 31. Qd2 {[%clk 0:00:02]}  Rd8 {[%clk 0:01:37]} 32. Qe3 {[%clk 0:00:02]}  Qxb2 {[%clk 0:01:33]} 33. Re1 {[%clk 0:00:01]}  Qxa2 {[%clk 0:01:32]} 34. Qf3 {[%clk 0:00:01]}  Rxa7 {[%clk 0:01:29]} 35. Bxa7 {[%clk 0:00:02]}  Qxa7+ {[%clk 0:01:29]} 36. Kg2 {[%clk 0:00:03]}  Qa8 {[%clk 0:01:29]} 37. Rf1 {[%clk 0:00:02]}  Rd2+ {[%clk 0:01:28]} 38. Kh3 {[%clk 0:00:02]}  Qxf3 {[%clk 0:01:28]} 39. Rxf3 {[%clk 0:00:03]}  g6 {[%clk 0:01:28]} 40. Ra3 {[%clk 0:00:03]}  Kg7 {[%clk 0:01:28]} 41. g4 {[%clk 0:00:04]}  g5 {[%clk 0:01:28]} 42. Ra5 {[%clk 0:00:03]}  Rd3+ {[%clk 0:01:27]} 43. Kg2 {[%clk 0:00:03]}  Kg6 {[%clk 0:01:28]} 44. Ra6 {[%clk 0:00:04]}  Re3 {[%clk 0:01:28]} 45. Kf2 {[%clk 0:00:03]}  Re4 {[%clk 0:01:28]} 46. Kf3 {[%clk 0:00:04]}  Rf4+ {[%clk 0:01:28]} 47. Kg3 {[%clk 0:00:04]}  Kg7 {[%clk 0:01:29]} 48. Ra7 {[%clk 0:00:04]}  Kg6 {[%clk 0:01:29]} 49. Ra6 {[%clk 0:00:05]}  Rd4 {[%clk 0:01:29]} 50. Kf3 {[%clk 0:00:05]}  Rd3+ {[%clk 0:01:29]} 51. Kf2 {[%clk 0:00:04]}  Rc3 {[%clk 0:01:29]} 52. Rb6 {[%clk 0:00:04]}  Kf6 {[%clk 0:01:30]} 53. Rb7 {[%clk 0:00:03]}  Rc4 {[%clk 0:01:28]} 54. Kf3 {[%clk 0:00:03]}  Rf4+ {[%clk 0:01:28]} 55. Kg3 {[%clk 0:00:03]}  e5 {[%clk 0:01:28]} 56. Rb6+ {[%clk 0:00:03]}  Kg7 {[%clk 0:01:29]} 57. Rb7 {[%clk 0:00:04]}  Kg6 {[%clk 0:01:29]} 58. Rb6+ {[%clk 0:00:04]}  f6 {[%clk 0:01:30]} 59. Ra6 {[%clk 0:00:05]}  Rd4 {[%clk 0:01:30]} 60. Rb6 {[%clk 0:00:05]}  Rd3+ {[%clk 0:01:30]} 61. Kg2 {[%clk 0:00:06]}  Kf7 {[%clk 0:01:30]} 62. Rb7+ {[%clk 0:00:05]}  Ke6 {[%clk 0:01:30]} 63. Rb6+ {[%clk 0:00:06]}  Ke7 {[%clk 0:01:30]} 64. Rb7+ {[%clk 0:00:06]}  Ke6 {[%clk 0:01:31]} 65. Rb6+ {[%clk 0:00:07]}  Rd6 {[%clk 0:01:32]} 66. Rb7 {[%clk 0:00:07]}  e4 {[%clk 0:01:32]} 67. Kf2 {[%clk 0:00:07]}  Ke5 {[%clk 0:01:32]} 68. Ke3 {[%clk 0:00:03]}  Rd3+ {[%clk 0:01:32]} 69. Ke2 {[%clk 0:00:04]}  Kf4 {[%clk 0:01:32]} 70. Rb6 {[%clk 0:00:05]}  Re3+ {[%clk 0:01:30]} 71. Kf2 {[%clk 0:00:05]}  Rf3+ {[%clk 0:01:30]} 72. Ke2 {[%clk 0:00:05]}  Kxg4 {[%clk 0:01:30]} 73. Re6 {[%clk 0:00:06]}  f5 {[%clk 0:01:30]} 74. Re8 {[%clk 0:00:05]}  Rh3 {[%clk 0:01:31]} 75. Rh8 {[%clk 0:00:05]}  Rxh8 {[%clk 0:01:30]} 0-1


[Site "https://www.chess.com"]

[Event "Titled Tuesday Blitz July 25 Late 2023"]
[White "Ismayil, Malak"]
[Black "Hajiyev, Kanan"]
[WhiteFideId "13412604"]
[BlackFideId "13404148"]
[WhiteElo "2462"]
[BlackElo "2579"]
[Result "1/2-1/2"]
[Round "10"]
[TimeControl "180+2"]
[Date "2023.07.25"]
[WhiteClock "0:00:58"]
[BlackClock "0:01:34"]
[Board "54"]

1. e4 {[%clk 0:02:56]}  c6 {[%clk 0:02:59]} 2. d4 {[%clk 0:02:55]}  d5 {[%clk 0:03:00]} 3. Nc3 {[%clk 0:02:55]}  a6 {[%clk 0:03:01]} 4. Nf3 {[%clk 0:02:53]}  Bg4 {[%clk 0:03:01]} 5. Be2 {[%clk 0:02:53]}  e6 {[%clk 0:03:01]} 6. O-O {[%clk 0:02:53]}  Nf6 {[%clk 0:03:01]} 7. h3 {[%clk 0:02:53]}  Bh5 {[%clk 0:02:58]} 8. exd5 {[%clk 0:02:48]}  cxd5 {[%clk 0:02:59]} 9. Bg5 {[%clk 0:02:45]}  Nc6 {[%clk 0:02:55]} 10. Ne5 {[%clk 0:02:44]}  Bxe2 {[%clk 0:02:54]} 11. Nxe2 {[%clk 0:02:41]}  Be7 {[%clk 0:02:52]} 12. Nd3 {[%clk 0:02:22]}  O-O {[%clk 0:02:49]} 13. c3 {[%clk 0:02:23]}  Ne4 {[%clk 0:02:49]} 14. Bxe7 {[%clk 0:02:19]}  Qxe7 {[%clk 0:02:48]} 15. f3 {[%clk 0:02:19]}  Nd6 {[%clk 0:02:47]} 16. Qe1 {[%clk 0:02:12]}  Nc4 {[%clk 0:02:45]} 17. Qg3 {[%clk 0:02:07]}  Ne3 {[%clk 0:02:42]} 18. Rfc1 {[%clk 0:01:56]}  Rfc8 {[%clk 0:02:38]} 19. f4 {[%clk 0:01:56]}  Nf5 {[%clk 0:02:36]} 20. Qf2 {[%clk 0:01:54]}  Nd6 {[%clk 0:02:31]} 21. Ng3 {[%clk 0:01:51]}  f5 {[%clk 0:02:31]} 22. Re1 {[%clk 0:01:50]}  Ne4 {[%clk 0:02:31]} 23. Qe3 {[%clk 0:01:49]}  Rf8 {[%clk 0:02:28]} 24. Rf1 {[%clk 0:01:47]}  Qh4 {[%clk 0:02:28]} 25. Nxe4 {[%clk 0:01:41]}  fxe4 {[%clk 0:02:29]} 26. Ne5 {[%clk 0:01:39]}  Nxe5 {[%clk 0:02:19]} 27. fxe5 {[%clk 0:01:40]}  h6 {[%clk 0:02:13]} 28. Rae1 {[%clk 0:01:32]}  Rxf1+ {[%clk 0:02:06]} 29. Rxf1 {[%clk 0:01:33]}  Rf8 {[%clk 0:02:06]} 30. Rxf8+ {[%clk 0:01:27]}  Kxf8 {[%clk 0:02:07]} 31. Kf1 {[%clk 0:01:26]}  g5 {[%clk 0:02:02]} 32. Ke2 {[%clk 0:01:21]}  Qf4 {[%clk 0:02:01]} 33. g3 {[%clk 0:01:21]}  Qxe3+ {[%clk 0:02:01]} 34. Kxe3 {[%clk 0:01:21]}  h5 {[%clk 0:02:01]} 35. c4 {[%clk 0:01:19]}  Ke7 {[%clk 0:01:46]} 36. cxd5 {[%clk 0:01:07]}  exd5 {[%clk 0:01:47]} 37. g4 {[%clk 0:01:02]}  h4 {[%clk 0:01:41]} 38. Kd2 {[%clk 0:00:59]}  Kd7 {[%clk 0:01:37]} 39. Kc3 {[%clk 0:00:59]}  Kc6 {[%clk 0:01:38]} 40. b3 {[%clk 0:00:56]}  a5 {[%clk 0:01:37]} 41. a4 {[%clk 0:00:55]}  b5 {[%clk 0:01:36]} 42. Kd2 {[%clk 0:00:55]}  bxa4 {[%clk 0:01:32]} 43. bxa4 {[%clk 0:00:56]}  Kd7 {[%clk 0:01:32]} 44. Ke2 {[%clk 0:00:57]}  Ke7 {[%clk 0:01:32]} 45. Kd2 {[%clk 0:00:57]}  Ke6 {[%clk 0:01:32]} 46. Ke2 {[%clk 0:00:57]}  Ke7 {[%clk 0:01:32]} 47. Kd2 {[%clk 0:00:58]}  Ke6 {[%clk 0:01:33]} 48. Ke2 {[%clk 0:00:58]}  Ke7 {[%clk 0:01:34]} 1/2-1/2


[Site "https://www.chess.com"]

[Event "Titled Tuesday Blitz July 25 Late 2023"]
[White "Mickiewicz, Piotr"]
[Black "Sivakumar, Shaaketh"]
[WhiteFideId "1114891"]
[BlackFideId "30940176"]
[WhiteElo "2448"]
[BlackElo "2570"]
[Result "1-0"]
[Round "10"]
[TimeControl "180+2"]
[Date "2023.07.25"]
[WhiteClock "0:00:18"]
[BlackClock "0:01:04"]
[Board "55"]

1. Nf3 {[%clk 0:03:00]}  e6 {[%clk 0:02:58]} 2. g3 {[%clk 0:03:01]}  b5 {[%clk 0:02:59]} 3. Bg2 {[%clk 0:03:01]}  Bb7 {[%clk 0:02:59]} 4. O-O {[%clk 0:03:01]}  Nf6 {[%clk 0:03:00]} 5. a4 {[%clk 0:03:01]}  b4 {[%clk 0:02:59]} 6. d3 {[%clk 0:03:01]}  a5 {[%clk 0:03:00]} 7. e4 {[%clk 0:03:01]}  g6 {[%clk 0:03:00]} 8. e5 {[%clk 0:02:56]}  Nd5 {[%clk 0:02:59]} 9. Re1 {[%clk 0:02:56]}  h6 {[%clk 0:02:58]} 10. h4 {[%clk 0:02:56]}  Bg7 {[%clk 0:02:58]} 11. d4 {[%clk 0:02:52]}  c5 {[%clk 0:02:56]} 12. dxc5 {[%clk 0:02:48]}  O-O {[%clk 0:02:54]} 13. Nbd2 {[%clk 0:02:47]}  Na6 {[%clk 0:02:54]} 14. Ne4 {[%clk 0:02:46]}  Qc7 {[%clk 0:02:52]} 15. h5 {[%clk 0:02:04]}  Nxc5 {[%clk 0:02:45]} 16. Nd6 {[%clk 0:01:41]}  Ba6 {[%clk 0:02:38]} 17. Nd4 {[%clk 0:01:05]}  g5 {[%clk 0:02:25]} 18. f4 {[%clk 0:01:03]}  gxf4 {[%clk 0:02:23]} 19. gxf4 {[%clk 0:01:04]}  f6 {[%clk 0:02:15]} 20. Bxd5 {[%clk 0:01:03]}  exd5 {[%clk 0:02:15]} 21. N4f5 {[%clk 0:01:01]}  Bb7 {[%clk 0:02:04]} 22. Qg4 {[%clk 0:00:58]}  Ne6 {[%clk 0:02:04]} 23. exf6 {[%clk 0:00:58]}  Rxf6 {[%clk 0:01:58]} 24. Nxg7 {[%clk 0:00:56]}  Nxg7 {[%clk 0:01:48]} 25. Re7 {[%clk 0:00:55]}  Qc5+ {[%clk 0:01:32]} 26. Be3 {[%clk 0:00:43]}  Qxe3+ {[%clk 0:01:29]} 27. Rxe3 {[%clk 0:00:44]}  Kf8 {[%clk 0:01:27]} 28. Nxb7 {[%clk 0:00:37]}  d4 {[%clk 0:01:26]} 29. Re4 {[%clk 0:00:33]}  Nf5 {[%clk 0:01:23]} 30. Rae1 {[%clk 0:00:31]}  Rc8 {[%clk 0:01:23]} 31. Re5 {[%clk 0:00:27]}  Ne3 {[%clk 0:01:21]} 32. R1xe3 {[%clk 0:00:26]}  dxe3 {[%clk 0:01:22]} 33. Nc5 {[%clk 0:00:23]}  Rd6 {[%clk 0:01:12]} 34. Nxd7+ {[%clk 0:00:22]}  Kf7 {[%clk 0:01:11]} 35. Qf5+ {[%clk 0:00:20]}  Kg8 {[%clk 0:01:10]} 36. Re7 {[%clk 0:00:20]}  Kh8 {[%clk 0:01:04]} 37. Qh7# {[%clk 0:00:18]} 1-0


[Site "https://www.chess.com"]

[Event "Titled Tuesday Blitz July 25 Late 2023"]
[White "ElDivis"]
[Black "Rakitic2010"]
[WhiteElo "2538"]
[BlackElo "2430"]
[Result "1-0"]
[Round "10"]
[TimeControl "180+2"]
[Date "2023.07.25"]
[WhiteClock "0:00:05"]
[BlackClock "0:00:00"]
[Board "56"]

1. Nf3 {[%clk 0:03:00]}  Nf6 {[%clk 0:03:00]} 2. c4 {[%clk 0:03:01]}  e6 {[%clk 0:02:59]} 3. Nc3 {[%clk 0:03:00]}  d5 {[%clk 0:02:58]} 4. e3 {[%clk 0:02:59]}  c6 {[%clk 0:02:58]} 5. b3 {[%clk 0:02:59]}  Be7 {[%clk 0:02:57]} 6. Bb2 {[%clk 0:03:00]}  O-O {[%clk 0:02:58]} 7. Qc2 {[%clk 0:03:00]}  a5 {[%clk 0:02:57]} 8. Rg1 {[%clk 0:02:52]}  Na6 {[%clk 0:02:51]} 9. a3 {[%clk 0:02:52]}  c5 {[%clk 0:02:39]} 10. g4 {[%clk 0:02:34]}  d4 {[%clk 0:02:34]} 11. Nb5 {[%clk 0:02:33]}  b6 {[%clk 0:02:06]} 12. g5 {[%clk 0:02:27]}  Nh5 {[%clk 0:02:05]} 13. Bd3 {[%clk 0:02:00]}  g6 {[%clk 0:01:55]} 14. Be4 {[%clk 0:01:59]}  Rb8 {[%clk 0:01:50]} 15. exd4 {[%clk 0:01:59]}  Bb7 {[%clk 0:01:43]} 16. Bxb7 {[%clk 0:01:43]}  Rxb7 {[%clk 0:01:44]} 17. Qc3 {[%clk 0:01:40]}  Nf4 {[%clk 0:01:26]} 18. Rg4 {[%clk 0:01:14]}  cxd4 {[%clk 0:01:04]} 19. Nbxd4 {[%clk 0:01:04]}  e5 {[%clk 0:01:03]} 20. Nc6 {[%clk 0:00:56]}  Qd3 {[%clk 0:01:00]} 21. Qxe5 {[%clk 0:00:37]}  Bf6 {[%clk 0:00:25]} 22. gxf6 {[%clk 0:00:25]}  Qxf3 {[%clk 0:00:20]} 23. Rxf4 {[%clk 0:00:22]}  Qxc6 {[%clk 0:00:20]} 24. O-O-O {[%clk 0:00:17]}  Nc5 {[%clk 0:00:20]} 25. Qc3 {[%clk 0:00:15]}  a4 {[%clk 0:00:19]} 26. bxa4 {[%clk 0:00:14]}  Nxa4 {[%clk 0:00:18]} 27. Qb4 {[%clk 0:00:13]}  b5 {[%clk 0:00:19]} 28. d3 {[%clk 0:00:11]}  bxc4 {[%clk 0:00:17]} 29. Rxc4 {[%clk 0:00:08]}  Rxb4 {[%clk 0:00:12]} 30. Rxc6 {[%clk 0:00:08]}  Rxb2 {[%clk 0:00:13]} 31. Rc4 {[%clk 0:00:08]}  Rxf2 {[%clk 0:00:06]} 32. Rxa4 {[%clk 0:00:07]}  Rxf6 {[%clk 0:00:06]} 33. Rc4 {[%clk 0:00:06]}  Ra8 {[%clk 0:00:06]} 34. Kb2 {[%clk 0:00:06]}  Rf2+ {[%clk 0:00:06]} 35. Kb3 {[%clk 0:00:06]}  Rxh2 {[%clk 0:00:06]} 36. a4 {[%clk 0:00:07]}  Rh5 {[%clk 0:00:05]} 37. d4 {[%clk 0:00:06]}  Rb8+ {[%clk 0:00:02]} 38. Rb4 {[%clk 0:00:05]}  Rh3+ {[%clk 0:00:03]} 39. Kc4 {[%clk 0:00:06]}  Rc8+ {[%clk 0:00:03]} 40. Kd5 {[%clk 0:00:05]}  Rh5+ {[%clk 0:00:03]} 41. Kd6 {[%clk 0:00:06]}  Rf5 {[%clk 0:00:04]} 42. d5 {[%clk 0:00:05]}  Kf8 {[%clk 0:00:04]} 43. Kd7 {[%clk 0:00:05]}  Ra8 {[%clk 0:00:04]} 44. d6 {[%clk 0:00:06]}  Rc5 {[%clk 0:00:04]} 45. Rb7 {[%clk 0:00:04]}  Rcc8 {[%clk 0:00:03]} 46. Rc7 {[%clk 0:00:04]}  Rd8+ {[%clk 0:00:03]} 47. Kc6 {[%clk 0:00:05]}  Rxa4 {[%clk 0:00:04]} 48. d7 {[%clk 0:00:05]}  Rc4+ {[%clk 0:00:03]} 49. Kd6 {[%clk 0:00:05]}  Re4 {[%clk 0:00:02]} 50. Rc8 {[%clk 0:00:05]}  Re6+ {[%clk 0:00:02]} 51. Kc7 {[%clk 0:00:05]}  Ke7 {[%clk 0:00:03]} 52. Rxd8 {[%clk 0:00:05]}  Kf6 {[%clk 0:00:02]} 53. Re8 {[%clk 0:00:05]}  Ra6 {[%clk 0:00:02]} 54. d8=Q+ {[%clk 0:00:05]}  Kf5 {[%clk 0:00:01]} 55. Qd5+ {[%clk 0:00:05]}  Kg4 {[%clk 0:00:01]} 56. Rg1+ {[%clk 0:00:05]}  Kh4 {[%clk 0:00:00]} 57. Re4+ {[%clk 0:00:05]} 1-0


[Site "https://www.chess.com"]

[Event "Titled Tuesday Blitz July 25 Late 2023"]
[White "kripri"]
[Black "Deng, Henry"]
[BlackFideId "30965454"]
[WhiteElo "2375"]
[BlackElo "2535"]
[Result "0-1"]
[Round "10"]
[TimeControl "180+2"]
[Date "2023.07.25"]
[WhiteClock "0:00:08"]
[BlackClock "0:01:00"]
[Board "57"]

1. e4 {[%clk 0:03:00]}  c5 {[%clk 0:02:57]} 2. Nf3 {[%clk 0:03:01]}  e6 {[%clk 0:02:57]} 3. d4 {[%clk 0:03:00]}  cxd4 {[%clk 0:02:58]} 4. Nxd4 {[%clk 0:03:01]}  Nf6 {[%clk 0:02:59]} 5. Nc3 {[%clk 0:03:00]}  Nc6 {[%clk 0:02:59]} 6. Be3 {[%clk 0:02:59]}  Bb4 {[%clk 0:02:59]} 7. Bd3 {[%clk 0:02:48]}  d5 {[%clk 0:02:54]} 8. O-O {[%clk 0:02:24]}  Bxc3 {[%clk 0:02:39]} 9. bxc3 {[%clk 0:02:22]}  dxe4 {[%clk 0:02:40]} 10. Bb5 {[%clk 0:02:20]}  Bd7 {[%clk 0:02:40]} 11. Nb3 {[%clk 0:01:34]}  O-O {[%clk 0:02:05]} 12. Qe2 {[%clk 0:01:21]}  a6 {[%clk 0:02:04]} 13. Bxc6 {[%clk 0:01:09]}  Bxc6 {[%clk 0:02:05]} 14. Rfd1 {[%clk 0:01:02]}  Qc7 {[%clk 0:02:06]} 15. Nd4 {[%clk 0:00:54]}  Bd5 {[%clk 0:02:04]} 16. Qd2 {[%clk 0:00:50]}  Rac8 {[%clk 0:02:01]} 17. Ne2 {[%clk 0:00:47]}  Rfd8 {[%clk 0:01:59]} 18. Qe1 {[%clk 0:00:42]}  Bc4 {[%clk 0:01:56]} 19. Nd4 {[%clk 0:00:34]}  Ng4 {[%clk 0:01:51]} 20. g3 {[%clk 0:00:29]}  Bd5 {[%clk 0:01:45]} 21. Bd2 {[%clk 0:00:25]}  Ne5 {[%clk 0:01:38]} 22. Bf4 {[%clk 0:00:23]}  f6 {[%clk 0:01:34]} 23. Bxe5 {[%clk 0:00:22]}  Qxe5 {[%clk 0:01:32]} 24. Ne2 {[%clk 0:00:22]}  Bc4 {[%clk 0:01:31]} 25. Nd4 {[%clk 0:00:21]}  Bd5 {[%clk 0:01:30]} 26. Qe3 {[%clk 0:00:21]}  Rc4 {[%clk 0:01:28]} 27. Rd2 {[%clk 0:00:21]}  Rdc8 {[%clk 0:01:28]} 28. Ne2 {[%clk 0:00:21]}  Qc7 {[%clk 0:01:23]} 29. Rad1 {[%clk 0:00:21]}  Rc6 {[%clk 0:01:21]} 30. Qd4 {[%clk 0:00:20]}  Rc4 {[%clk 0:01:17]} 31. Qe3 {[%clk 0:00:20]}  Qc5 {[%clk 0:01:16]} 32. Rd4 {[%clk 0:00:18]}  Rc7 {[%clk 0:01:11]} 33. Rxc4 {[%clk 0:00:17]}  Qxe3 {[%clk 0:01:10]} 34. fxe3 {[%clk 0:00:17]}  Rxc4 {[%clk 0:01:10]} 35. Rd4 {[%clk 0:00:16]}  Rxd4 {[%clk 0:01:09]} 36. cxd4 {[%clk 0:00:17]}  Bxa2 {[%clk 0:01:09]} 37. Nc3 {[%clk 0:00:17]}  Bd5 {[%clk 0:01:10]} 38. Kf2 {[%clk 0:00:17]}  b5 {[%clk 0:01:10]} 39. Ke1 {[%clk 0:00:17]}  b4 {[%clk 0:01:10]} 40. Na4 {[%clk 0:00:17]}  Kf7 {[%clk 0:01:11]} 41. Kd2 {[%clk 0:00:16]}  Ke7 {[%clk 0:01:11]} 42. Nc5 {[%clk 0:00:15]}  a5 {[%clk 0:01:10]} 43. c3 {[%clk 0:00:15]}  Kd6 {[%clk 0:01:10]} 44. cxb4 {[%clk 0:00:13]}  axb4 {[%clk 0:01:10]} 45. Kc1 {[%clk 0:00:12]}  Bc4 {[%clk 0:01:09]} 46. Kb2 {[%clk 0:00:11]}  Kd5 {[%clk 0:01:09]} 47. Nd7 {[%clk 0:00:05]}  Bb5 {[%clk 0:01:07]} 48. Nf8 {[%clk 0:00:04]}  Be8 {[%clk 0:01:03]} 49. Nxh7 {[%clk 0:00:04]}  Bg6 {[%clk 0:00:59]} 50. Nf8 {[%clk 0:00:04]}  Bf5 {[%clk 0:01:00]} 51. Nd7 {[%clk 0:00:05]}  Kc4 {[%clk 0:00:57]} 52. Kc2 {[%clk 0:00:03]}  b3+ {[%clk 0:00:56]} 53. Kb2 {[%clk 0:00:03]}  Kd3 {[%clk 0:00:56]} 54. Nc5+ {[%clk 0:00:03]}  Kxe3 {[%clk 0:00:57]} 55. Nxb3 {[%clk 0:00:03]}  Kf2 {[%clk 0:00:57]} 56. Kc3 {[%clk 0:00:03]}  e3 {[%clk 0:00:57]} 57. Nc1 {[%clk 0:00:04]}  e2 {[%clk 0:00:58]} 58. Nxe2 {[%clk 0:00:04]}  Kxe2 {[%clk 0:00:58]} 59. h4 {[%clk 0:00:04]}  Kf3 {[%clk 0:00:58]} 60. Kc4 {[%clk 0:00:04]}  Kxg3 {[%clk 0:00:58]} 61. Kc5 {[%clk 0:00:05]}  Be4 {[%clk 0:00:59]} 62. Kd6 {[%clk 0:00:05]}  Bd5 {[%clk 0:00:59]} 63. Ke7 {[%clk 0:00:06]}  Kxh4 {[%clk 0:01:00]} 64. Kf7 {[%clk 0:00:06]}  g5 {[%clk 0:01:00]} 65. Kxf6 {[%clk 0:00:07]}  g4 {[%clk 0:01:01]} 66. Ke5 {[%clk 0:00:07]}  g3 {[%clk 0:01:02]} 67. Kd6 {[%clk 0:00:08]}  g2 {[%clk 0:01:02]} 68. Ke5 {[%clk 0:00:09]}  g1=Q {[%clk 0:01:03]} 69. Kd6 {[%clk 0:00:10]}  Qg3+ {[%clk 0:01:03]} 70. Ke7 {[%clk 0:00:10]}  Qc7+ {[%clk 0:01:03]} 71. Ke8 {[%clk 0:00:10]}  Kg5 {[%clk 0:01:00]} 72. Kf8 {[%clk 0:00:08]}  Kf6 {[%clk 0:01:00]} 0-1


[Site "https://www.chess.com"]